lending/lending_fUSD_20250429
["ID","MTS","AMOUNT","RATE_DAILY","PERIOD"]
[359330040,1745929844266,-1320.17,0.00027512,2]
[359330041,1745929844276,-595.85,0.00027512,2]
[359330042,1745929844285,-790.21,0.00027512,2]
[359330043,1745929844295,-470.0,0.00027512,2]
[359330044,1745929844305,-470.0,0.00027512,2]
[359330045,1745929844314,-434.13352987,0.00027512,2]
[359330046,1745929844324,-824.9,0.00027512,2]
[359330047,1745929844334,-513.7,0.00027512,2]
[359330048,1745929844344,-942.37,0.00027512,2]
[359330049,1745929844355,-470.0,0.00027512,2]
[359330050,1745929844365,-470.0,0.00027512,2]
[359330051,1745929844374,-470.0,0.00027512,2]
[359330052,1745929844384,-470.0,0.00027512,2]
[359330053,1745929844393,-470.0,0.00027512,2]
[359330054,1745929844404,-685.03,0.00027512,2]
[359330055,1745929844414,-470.0,0.00027512,2]
[359330056,1745929844423,-202.04475871,0.00027512,2]
[359330057,1745929844434,-470.0,0.00027512,2]
[359330058,1745929844443,-470.0,0.00027512,2]
[359330059,1745929844452,-470.0,0.00027512,2]
[359330060,1745929844461,-470.0,0.00027512,2]
[359330061,1745929844471,-470.0,0.00027512,2]
[359330062,1745929844479,-470.0,0.00027512,2]
[359330063,1745929844489,-307.73300286,0.00027512,2]
[359330064,1745929844498,-470.0,0.00027512,2]
[359330065,1745929844508,-470.0,0.00027512,2]
[359330066,1745929844518,-470.0,0.00027512,2]
[359330067,1745929844528,-879.58,0.00027512,2]
[359330068,1745929844537,-470.0,0.00027512,2]
[359330069,1745929844547,-470.0,0.00027512,2]
[359330070,1745929844556,-470.0,0.00027512,2]
[359330071,1745929844566,-802.55,0.00027512,2]
[359330072,1745929844577,-683.84,0.00027512,2]
[359330073,1745929844586,-470.0,0.00027512,2]
[359330074,1745929844595,-553.52,0.00027512,2]
[359330075,1745929844605,-520.46,0.00027512,2]
[359330076,1745929844614,-470.0,0.00027512,2]
[359330077,1745929844623,-470.0,0.00027512,2]
[359330078,1745929844633,-472.76,0.00027512,2]
[359330079,1745929844643,-470.0,0.00027512,2]
[359330080,1745929844652,-470.0,0.00027512,2]
[359330081,1745929844662,-470.0,0.00027512,2]
[359330082,1745929844671,-470.0,0.00027512,2]
[359330083,1745929844681,-470.0,0.00027512,2]
[359330084,1745929844691,-1152.55,0.00027512,2]
[359330085,1745929844701,-474.87,0.00027512,2]
[359330086,1745929844710,-470.0,0.00027512,2]
[359330087,1745929844720,-470.0,0.00027512,2]
[359330088,1745929844729,-470.0,0.00027512,2]
[359330089,1745929844739,-470.0,0.00027512,2]
[359330090,1745929844749,-470.0,0.00027512,2]
[359330091,1745929844758,-470.0,0.00027512,2]
[359330092,1745929844767,-470.0,0.00027512,2]
[359330093,1745929844776,-470.0,0.00027512,2]
[359330094,1745929844786,-1091.3,0.00027512,2]
[359330095,1745929844795,-2162.93,0.00027512,2]
[359330096,1745929844804,-547.11,0.00027512,2]
[359330097,1745929844813,-470.0,0.00027512,2]
[359330098,1745929844824,-470.0,0.00027512,2]
[359330099,1745929844836,-575.14,0.00027512,2]
[359330100,1745929844847,-6630.56,0.00027512,2]
[359330101,1745929844856,-842.14,0.00027512,2]
[359330102,1745929844865,-470.0,0.00027512,2]
[359330103,1745929844875,-470.0,0.00027512,2]
[359330104,1745929844887,-663.38,0.00027512,2]
[359330105,1745929844898,-470.0,0.00027512,2]
[359330106,1745929844908,-503.03,0.00027512,2]
[359330107,1745929844918,-470.0,0.00027512,2]
[359330108,1745929844928,-470.0,0.00027512,2]
[359330109,1745929844939,-470.0,0.00027512,2]
[359330110,1745929844948,-470.0,0.00027512,2]
[359330111,1745929844959,-578.25142515,0.00027512,2]
[359330112,1745929844968,-470.0,0.00027512,2]
[359330113,1745929844979,-524.03,0.00027512,2]
[359330114,1745929844989,-470.0,0.00027512,2]
[359330115,1745929844998,-470.0,0.00027512,2]
[359330116,1745929845009,-470.0,0.00027512,2]
[359330117,1745929845018,-470.0,0.00027512,2]
[359330118,1745929845028,-470.0,0.00027512,2]
[359330119,1745929845037,-470.0,0.00027512,2]
[359330120,1745929845046,-470.0,0.00027512,2]
[359330121,1745929845056,-470.0,0.00027512,2]
[359330122,1745929845066,-470.0,0.00027512,2]
[359330123,1745929845075,-470.0,0.00027512,2]
[359330124,1745929845084,-470.0,0.00027512,2]
[359330125,1745929845094,-630.0,0.00027512,2]
[359330126,1745929845103,-470.0,0.00027512,2]
[359330127,1745929845113,-7219.12,0.00027512,2]
[359330128,1745929845122,-470.0,0.00027512,2]
[359330129,1745929845132,-158.06644379,0.00027512,2]
[359330130,1745929845141,-470.0,0.00027512,2]
[359330131,1745929845150,-470.0,0.00027512,2]
[359330132,1745929845159,-470.0,0.00027512,2]
[359330133,1745929845169,-470.0,0.00027512,2]
[359330134,1745929845179,-25742.12,0.00027512,2]
[359330135,1745929845189,-470.0,0.00027512,2]
[359330136,1745929845199,-300.0,0.00027512,2]
[359330137,1745929845209,-534.98,0.00027512,2]
[359330138,1745929845219,-470.0,0.00027512,2]
[359330139,1745929845229,-470.0,0.00027512,2]
[359330140,1745929845240,-470.0,0.00027512,2]
[359330141,1745929845249,-470.0,0.00027512,2]
[359330142,1745929845259,-5332.88,0.00027512,2]
[359330143,1745929845268,-2342.46,0.00027512,2]
[359330144,1745929845278,-470.0,0.00027512,2]
[359330145,1745929845287,-150.0,0.00027519,2]
[359330146,1745929845296,-499.3493,0.0002752,7]
[359330147,1745929845306,-499.3493,0.0002752,7]
[359330148,1745929845315,-151.0,0.0002752,7]
[359330149,1745929845325,-155.80818447,0.0002752,2]
[359330150,1745929845335,-470.0,0.0002752,2]
[359330151,1745929845344,-470.0,0.0002752,2]
[359330152,1745929845354,-931.24,0.0002752,2]
[359330153,1745929845365,-470.0,0.0002752,2]
[359330154,1745929845375,-470.0,0.0002752,2]
[359330155,1745929845385,-470.0,0.0002752,2]
[359330156,1745929845395,-470.0,0.0002752,2]
[359330157,1745929845405,-470.0,0.0002752,2]
[359330158,1745929845415,-442.26468506,0.0002752,2]
[359330159,1745929845425,-470.0,0.0002752,2]
[359330160,1745929845435,-799.98,0.0002752,2]
[359330161,1745929845445,-470.0,0.0002752,2]
[359330162,1745929845454,-470.0,0.0002752,2]
[359330163,1745929845464,-470.0,0.0002752,2]
[359330164,1745929845474,-470.0,0.0002752,2]
[359330165,1745929845483,-470.0,0.0002752,2]
[359330166,1745929845493,-470.0,0.0002752,2]
[359330167,1745929845503,-470.0,0.0002752,2]
[359330168,1745929845512,-916.19,0.0002752,2]
[359330169,1745929845522,-470.0,0.0002752,2]
[359330170,1745929845532,-470.0,0.0002752,2]
[359330171,1745929845541,-470.0,0.0002752,2]
[359330172,1745929845551,-470.0,0.0002752,2]
[359330173,1745929845561,-500.0,0.0002752,2]
[359330174,1745929845570,-599.39205387,0.0002752,2]
[359330175,1745929845580,-470.0,0.0002752,2]
[359330176,1745929845590,-470.0,0.0002752,2]
[359330177,1745929845599,-193.03,0.0002752,2]
[359330178,1745929845610,-470.0,0.0002752,2]
[359330179,1745929845620,-470.0,0.0002752,2]
[359330180,1745929845630,-439.43733849,0.0002752,2]
[359330181,1745929845640,-470.0,0.0002752,2]
[359330182,1745929845651,-470.0,0.0002752,2]
[359330183,1745929845660,-470.0,0.0002752,2]
[359330184,1745929845669,-470.0,0.0002752,2]
[359330185,1745929845679,-470.0,0.0002752,2]
[359330186,1745929845689,-470.0,0.0002752,2]
[359330187,1745929845699,-470.0,0.0002752,2]
[359330188,1745929845709,-470.0,0.0002752,2]
[359330189,1745929845718,-470.0,0.0002752,2]
[359330190,1745929845730,-470.0,0.0002752,2]
[359330191,1745929845739,-400.0,0.0002752,2]
[359330192,1745929845749,-470.0,0.0002752,2]
[359330193,1745929845759,-470.0,0.0002752,2]
[359330194,1745929845768,-470.0,0.0002752,2]
[359330195,1745929845778,-470.0,0.0002752,2]
[359330197,1745929845788,-544.12,0.0002752,2]
[359330198,1745929845799,-470.0,0.0002752,2]
[359330200,1745929845808,-470.0,0.0002752,2]
[359330201,1745929845817,-470.0,0.0002752,2]
[359330202,1745929845827,-470.0,0.0002752,2]
[359330203,1745929845836,-470.0,0.0002752,2]
[359330204,1745929845846,-470.0,0.0002752,2]
[359330206,1745929845856,-470.0,0.0002752,2]
[359330207,1745929845866,-470.0,0.0002752,2]
[359330208,1745929845875,-470.0,0.0002752,2]
[359330210,1745929845884,-470.0,0.0002752,2]
[359330211,1745929845893,-470.0,0.0002752,2]
[359330213,1745929845903,-665.07,0.0002752,2]
[359330215,1745929845914,-470.0,0.0002752,2]
[359330216,1745929845923,-495.18,0.0002752,2]
[359330217,1745929845933,-590.02,0.0002752,2]
[359330218,1745929845943,-470.0,0.0002752,2]
[359330219,1745929845953,-470.0,0.0002752,2]
[359330220,1745929845963,-470.0,0.0002752,2]
[359330221,1745929845973,-1474.02,0.0002752,2]
[359330223,1745929845983,-470.0,0.0002752,2]
[359330224,1745929845993,-4795.28,0.0002752,2]
[359330226,1745929846004,-499.3493,0.00027521,7]
[359330228,1745929846014,-499.3493,0.00027521,7]
[359330230,1745929846024,-158.297058,0.00027521,7]
[359330232,1745929846033,-499.3493,0.00027522,7]
[359330233,1745929846042,-499.3493,0.00027522,7]
[359330234,1745929846051,-433.0,0.00027522,10]
[359330235,1745929846061,-29896.5144872,0.00027522,2]
[359330236,1745929846070,-153.546988,0.00027523,7]
[359330237,1745929846079,-159.665265,0.00027523,7]
[359330238,1745929846088,-151.0,0.00027523,7]
[359330239,1745929846098,-499.3493,0.00027523,7]
[359330240,1745929846107,-499.3493,0.00027523,7]
[359330241,1745929846117,-665.07,0.0002753,2]
[359330242,1745929846126,-151.0,0.00027532,7]
[359330243,1745929846136,-151.0,0.00027532,7]
[359330244,1745929846148,-151.0,0.00027532,7]
[359330245,1745929846158,-151.0,0.00027532,7]
[359330246,1745929846169,-222.265804,0.00027532,7]
[359330247,1745929846177,-499.3493,0.00027532,7]
[359330248,1745929846187,-499.3493,0.00027532,7]
[359330249,1745929846196,-665.07,0.00027532,2]
[359330250,1745929846206,-763.4942233,0.00027533,2]
[359330251,1745929846215,-29896.5144872,0.00027533,2]
[359330252,1745929846224,-25913.1829922,0.00027533,2]
[359330253,1745929846233,-151.0,0.00027533,7]
[359330254,1745929846243,-162.11779,0.00027533,7]
[359330255,1745929846252,-151.0,0.00027533,7]
[359330256,1745929846262,-254.772835,0.00027533,7]
[359330257,1745929846272,-151.0,0.00027533,7]
[359330258,1745929846281,-151.0,0.00027533,7]
[359330259,1745929846290,-499.3493,0.00027533,7]
[359330261,1745929846446,-499.3493,0.00027533,7]
[359330262,1745929846475,-499.3493,0.00027533,7]
[359330263,1745929846485,-499.3493,0.00027533,7]
[359330264,1745929846494,-151.0,0.00027533,7]
[359330265,1745929846504,-151.0,0.00027533,7]
[359330266,1745929846513,-151.0,0.00027533,7]
[359330267,1745929846523,-155.592861,0.00027533,7]
[359330268,1745929846532,-948.586399,0.00027533,7]
[359330269,1745929846542,-155.592861,0.00027533,7]
[359330270,1745929846552,-948.586399,0.00027533,7]
[359330271,1745929846562,-151.0,0.00027533,7]
[359330272,1745929846572,-151.0,0.00027533,7]
[359330273,1745929846582,-151.0,0.00027533,7]
[359330274,1745929846591,-932.827214,0.00027533,7]
[359330275,1745929846600,-932.827214,0.00027533,7]
[359330276,1745929846610,-151.352203,0.00027533,7]
[359330277,1745929846619,-151.0,0.00027533,7]
[359330278,1745929846629,-151.0,0.00027533,7]
[359330279,1745929846639,-481.308309,0.00027533,7]
[359330280,1745929846648,-481.308309,0.00027533,7]
[359330281,1745929846658,-346.509544,0.00027533,7]
[359330282,1745929846667,-346.509544,0.00027533,7]
[359330283,1745929846677,-197.393467,0.00027533,7]
[359330284,1745929846687,-197.393467,0.00027533,7]
[359330285,1745929846696,-167.528357,0.00027533,7]
[359330286,1745929846705,-525.661919,0.00027533,7]
[359330287,1745929846715,-525.661919,0.00027533,7]
[359330288,1745929846724,-151.0,0.00027535,7]
[359330289,1745929846733,-151.0,0.00027535,7]
[359330290,1745929846743,-154.03848,0.00027535,7]
[359330291,1745929846752,-151.0,0.00027535,7]
[359330292,1745929846762,-665.07,0.00027541,2]
[359330293,1745929846771,-151.0,0.00027542,7]
[359330294,1745929846780,-151.0,0.00027542,7]
[359330295,1745929846792,-152.074473,0.00027542,7]
[359330296,1745929846802,-14032.32180087,0.00027543,2]
[359330297,1745929846913,-470.0,0.00027509,2]
[359330298,1745929846923,-15864.19268633,0.00027543,2]
[359330299,1745929846932,-25913.1829922,0.00027543,2]
[359330300,1745929846941,-151.0,0.00027543,7]
[359330301,1745929846951,-151.0,0.00027543,7]
[359330302,1745929846960,-151.0,0.00027543,7]
[359330303,1745929846969,-151.0,0.00027543,7]
[359330304,1745929846979,-151.0,0.00027543,7]
[359330305,1745929846987,-499.3493,0.00027543,7]
[359330306,1745929846997,-499.3493,0.00027543,7]
[359330307,1745929847007,-151.0,0.00027543,7]
[359330308,1745929847016,-167.203536,0.00027543,7]
[359330309,1745929847025,-388.666048,0.00027543,7]
[359330310,1745929847034,-388.666048,0.00027543,7]
[359330311,1745929847044,-151.0,0.00027543,7]
[359330312,1745929847054,-151.0,0.00027543,7]
[359330313,1745929847063,-151.0,0.00027543,7]
[359330314,1745929847072,-151.0,0.00027543,7]
[359330315,1745929847081,-154.684887,0.00027543,7]
[359330316,1745929847090,-151.0,0.00027544,7]
[359330317,1745929847100,-151.0,0.00027544,7]
[359330318,1745929847109,-151.0,0.00027544,7]
[359330319,1745929847119,-170.898745,0.00027544,7]
[359330320,1745929847128,-154.295726,0.00027544,7]
[359330321,1745929847137,-162.418847,0.00027544,7]
[359330322,1745929847147,-156.502632,0.00027544,7]
[359330323,1745929847156,-23309.76160405,0.00027549,2]
[359330324,1745929847168,-400.07483383,0.00027549,2]
[359330325,1745929847184,-2203.34655432,0.00027549,2]
[359330326,1745929847194,-151.0,0.00027552,7]
[359330327,1745929847203,-665.07,0.00027552,2]
[359330328,1745929847213,-948.586399,0.00027552,7]
[359330329,1745929847222,-948.586399,0.00027552,7]
[359330330,1745929847232,-151.0,0.00027552,7]
[359330331,1745929847242,-932.827214,0.00027552,7]
[359330332,1745929847251,-932.827214,0.00027552,7]
[359330333,1745929847262,-210.162848,0.00027552,7]
[359330334,1745929847273,-151.0,0.00027552,7]
[359330335,1745929847283,-197.393467,0.00027552,7]
[359330336,1745929847293,-197.393467,0.00027552,7]
[359330337,1745929847303,-525.661919,0.00027552,7]
[359330338,1745929847313,-525.661919,0.00027552,7]
[359330339,1745929847322,-300.0,0.00027552,10]
[359330340,1745929847332,-300.0,0.00027552,10]
[359330341,1745929847342,-29896.5144872,0.00027552,2]
[359330342,1745929847351,-151.0,0.00027553,7]
[359330343,1745929847364,-151.0,0.00027553,7]
[359330344,1745929847374,-151.0,0.00027553,7]
[359330345,1745929847383,-499.3493,0.00027553,7]
[359330346,1745929847392,-499.3493,0.00027553,7]
[359330347,1745929847401,-499.3493,0.00027553,7]
[359330348,1745929847410,-499.3493,0.00027553,7]
[359330349,1745929847420,-1000.0,0.00027553,2]
[359330350,1745929847429,-1000.0,0.00027553,2]
[359330351,1745929847439,-1000.0,0.00027553,2]
[359330352,1745929847449,-1000.0,0.00027553,2]
[359330353,1745929847458,-1000.0,0.00027553,2]
[359330354,1745929847468,-1000.0,0.00027553,2]
[359330355,1745929847477,-1000.0,0.00027553,2]
[359330356,1745929847487,-1000.0,0.00027553,2]
[359330357,1745929847497,-1000.0,0.00027553,2]
[359330358,1745929847507,-1000.0,0.00027553,2]
[359330359,1745929847516,-1000.0,0.00027553,2]
[359330360,1745929847526,-1000.0,0.00027553,2]
[359330361,1745929847536,-1000.0,0.00027553,2]
[359330362,1745929847546,-1000.0,0.00027553,2]
[359330363,1745929847558,-1000.0,0.00027553,2]
[359330364,1745929847567,-1000.0,0.00027553,2]
[359330365,1745929847577,-1000.0,0.00027553,2]
[359330366,1745929847586,-1000.0,0.00027553,2]
[359330367,1745929847596,-1000.0,0.00027553,2]
[359330368,1745929847605,-1000.0,0.00027553,2]
[359330369,1745929847615,-1000.0,0.00027553,2]
[359330370,1745929847624,-1000.0,0.00027553,2]
[359330371,1745929847634,-1000.0,0.00027553,2]
[359330372,1745929847643,-1000.0,0.00027553,2]
[359330373,1745929847652,-1000.0,0.00027553,2]
[359330374,1745929847663,-1000.0,0.00027553,2]
[359330375,1745929847672,-1000.0,0.00027553,2]
[359330376,1745929847682,-1000.0,0.00027553,2]
[359330377,1745929847692,-1000.0,0.00027553,2]
[359330378,1745929847701,-1000.0,0.00027553,2]
[359330379,1745929847711,-1000.0,0.00027553,2]
[359330380,1745929847721,-714.283311,0.00027553,2]
[359330381,1745929847730,-151.0,0.00027553,7]
[359330382,1745929847741,-151.0,0.00027553,7]
[359330383,1745929847750,-151.0,0.00027553,7]
[359330384,1745929847761,-156.201695,0.00027553,7]
[359330385,1745929847770,-153.988947,0.00027553,7]
[359330386,1745929847779,-151.0,0.00027553,7]
[359330387,1745929847789,-151.0,0.00027553,7]
[359330388,1745929847799,-152.678386,0.00027553,7]
[359330389,1745929847808,-151.0,0.00027553,7]
[359330390,1745929847817,-151.0,0.00027553,7]
[359330391,1745929847826,-502.760034,0.00027553,7]
[359330392,1745929847836,-502.760034,0.00027553,7]
[359330393,1745929847845,-151.0,0.00027553,7]
[359330394,1745929847855,-166.195864,0.00027553,7]
[359330395,1745929847864,-152.732161,0.00027553,7]
[359330396,1745929847874,-156.35856,0.00027553,7]
[359330397,1745929847883,-151.0,0.00027553,7]
[359330398,1745929847894,-153.399017,0.00027553,7]
[359330399,1745929847904,-186.707806,0.00027553,7]
[359330400,1745929847915,-151.0,0.00027553,7]
[359330401,1745929847925,-158.595045,0.00027553,7]
[359330402,1745929847936,-206.58214,0.00027553,7]
[359330403,1745929847946,-236.083165,0.00027553,7]
[359330404,1745929847958,-156.753523,0.00027553,7]
[359330405,1745929847969,-151.0,0.00027553,7]
[359330406,1745929847979,-179.687567,0.00027553,7]
[359330407,1745929847990,-151.0,0.00027553,7]
[359330408,1745929848000,-151.0,0.00027553,7]
[359330409,1745929848010,-151.0,0.00027553,7]
[359330410,1745929848019,-151.0,0.00027553,7]
[359330411,1745929848029,-151.0,0.00027553,7]
[359330412,1745929848038,-187.638895,0.00027553,7]
[359330413,1745929848047,-157.535877,0.00027553,7]
[359330414,1745929848056,-296.321459,0.00027553,7]
[359330415,1745929848065,-151.0,0.00027553,7]
[359330416,1745929848075,-151.0,0.00027553,7]
[359330417,1745929848084,-447.531349,0.00027553,7]
[359330418,1745929848094,-447.531349,0.00027553,7]
[359330419,1745929848103,-155.592861,0.00027553,7]
[359330420,1745929848113,-155.592861,0.00027553,7]
[359330421,1745929848122,-151.0,0.00027553,7]
[359330422,1745929848132,-151.0,0.00027553,7]
[359330423,1745929848142,-151.0,0.00027553,7]
[359330424,1745929848152,-151.0,0.00027553,7]
[359330425,1745929848161,-481.308309,0.00027553,7]
[359330426,1745929848171,-481.308309,0.00027553,7]
[359330427,1745929848180,-151.0,0.00027553,7]
[359330428,1745929848189,-151.0,0.00027553,7]
[359330429,1745929848199,-346.509544,0.00027553,7]
[359330430,1745929848208,-346.509544,0.00027553,7]
[359330431,1745929848218,-5040.90618441,0.00027555,2]
[359330432,1745929848567,-4761.46074207,0.00027555,2]
[359330433,1745929850309,-61.53621801,0.00027555,2]
[359330434,1745929850341,-9742.32168154,0.00027555,2]
[359330435,1745929850838,-1992.93472171,0.00027412,2]
[359330436,1745929850849,-6306.95816617,0.00027555,2]
[359330437,1745929850863,-388.666048,0.00027559,7]
[359330438,1745929850881,-388.666048,0.00027559,7]
[359330439,1745929850894,-151.0,0.00027559,7]
[359330440,1745929850905,-151.0,0.00027559,7]
[359330441,1745929850918,-151.0,0.00027559,7]
[359330442,1745929850931,-151.0,0.00027559,7]
[359330443,1745929850943,-5300.85937612,0.00027559,2]
[359330444,1745929850993,-1776.20347505,0.00027559,2]
[359330445,1745929851008,-11015.41802385,0.00027559,2]
[359330446,1745929851530,-470.0,0.00027512,2]
[359330447,1745929851542,-151.0,0.00027543,7]
[359330448,1745929851555,-30.1875,0.00027559,7]
[359330528,1745930496304,150.0,1e-08,2]
[359330531,1745930682456,-364.66343451,0.0002462,2]
[359330537,1745930854179,500.91297,0.00036986,60]
[359330538,1745930881203,500.0,0.00036986,60]
[359330539,1745930929286,-74.57656549,0.0002462,2]
[359330540,1745930929309,-77.42343451,0.00026,2]
[359330542,1745930949496,-276.795161,0.000259,2]
[359330543,1745930954721,-178.3320555,0.000259,2]
[359330544,1745930969400,158.364818,0.00026215,4]
[359330550,1745931000855,680.68,0.00036986,60]
[359330551,1745931014357,158.364818,0.00026215,4]
[359330552,1745931016572,1552.58713132,0.000269,7]
[359330555,1745931032129,-6978.03798854,0.000259,2]
[359330556,1745931032140,-627.454896,0.00026081,2]
[359330557,1745931032149,-207.4,0.00026212,2]
[359330558,1745931032159,-385.79775349,0.00026501,2]
[359330559,1745931032191,-814.20224651,0.00026501,2]
[359330560,1745931032201,-1000.0,0.00026502,2]
[359330561,1745931032211,-158.73,0.00026563,2]
[359330562,1745931032222,-439.24,0.00026884,2]
[359330563,1745931032234,-300.0,0.00027289,2]
[359330564,1745931032245,-1623.13,0.0002729,2]
[359330565,1745931032255,-467.25,0.0002729,2]
[359330566,1745931032265,-455.59,0.0002729,2]
[359330567,1745931032275,-455.59,0.0002729,2]
[359330568,1745931032288,-455.59,0.0002729,2]
[359330569,1745931032297,-200.0,0.00027339,2]
[359330570,1745931032307,-162.67,0.00027361,2]
[359330571,1745931032315,-152.02,0.00027397,2]
[359330572,1745931032325,-336.5,0.00027397,2]
[359330573,1745931032335,-610.79537864,0.00027409,2]
[359330574,1745931032344,-1000.0,0.00027411,2]
[359330575,1745931032354,-500.0,0.00027412,2]
[359330576,1745931032364,-2500.0,0.00027412,2]
[359330577,1745931032373,-345.66854819,0.00027443,2]
[359330578,1745931032382,-375.47271991,0.00027444,2]
[359330579,1745931032392,-1865.29113487,0.00027444,2]
[359330580,1745931032416,-83.49240476,0.00027444,2]
[359330581,1745931032426,-10476.87084588,0.0002747,2]
[359330582,1745931032435,-610.79537864,0.00027504,2]
[359330583,1745931032445,-470.0,0.00027509,2]
[359330584,1745931032453,-470.0,0.00027509,2]
[359330585,1745931032463,-470.0,0.00027509,2]
[359330586,1745931032472,-470.0,0.00027509,2]
[359330588,1745931032482,-470.0,0.00027509,2]
[359330590,1745931032491,-470.0,0.00027509,2]
[359330592,1745931032500,-470.0,0.00027509,2]
[359330593,1745931032509,-470.0,0.00027509,2]
[359330595,1745931032519,-470.0,0.00027509,2]
[359330597,1745931032528,-470.0,0.00027509,2]
[359330599,1745931032541,-470.0,0.00027509,2]
[359330601,1745931032550,-470.0,0.00027509,2]
[359330602,1745931032560,-470.0,0.00027509,2]
[359330603,1745931032570,-470.0,0.00027509,2]
[359330604,1745931032580,-470.0,0.00027509,2]
[359330605,1745931032589,-400.0,0.00027509,2]
[359330607,1745931032598,-470.0,0.00027509,2]
[359330609,1745931032607,-442.85213119,0.00027509,2]
[359330611,1745931032616,-470.0,0.00027509,2]
[359330613,1745931032625,-470.0,0.00027509,2]
[359330615,1745931032635,-470.0,0.00027509,2]
[359330617,1745931032644,-255.30394645,0.00027509,2]
[359330619,1745931032653,-470.0,0.00027509,2]
[359330621,1745931032663,-470.0,0.00027509,2]
[359330623,1745931032672,-470.0,0.00027509,2]
[359330625,1745931032681,-470.0,0.00027509,2]
[359330627,1745931032690,-491.3,0.00027509,2]
[359330629,1745931032700,-470.0,0.00027509,2]
[359330631,1745931032709,-470.0,0.00027509,2]
[359330633,1745931032718,-470.0,0.00027509,2]
[359330635,1745931032726,-470.0,0.00027509,2]
[359330637,1745931032736,-470.0,0.00027509,2]
[359330639,1745931032746,-470.0,0.00027509,2]
[359330641,1745931032756,-470.0,0.00027509,2]
[359330643,1745931032765,-470.0,0.00027509,2]
[359330645,1745931032775,-470.0,0.00027509,2]
[359330661,1745931033008,-470.0,0.00027509,2]
[359330662,1745931033018,-470.0,0.00027509,2]
[359330663,1745931033028,-470.0,0.00027509,2]
[359330664,1745931033041,-470.0,0.00027509,2]
[359330665,1745931033050,-470.0,0.00027509,2]
[359330666,1745931033060,-470.0,0.00027509,2]
[359330667,1745931033069,-1768.88,0.00027509,2]
[359330668,1745931033079,-466.92540593,0.00027509,2]
[359330669,1745931033088,-470.0,0.00027509,2]
[359330670,1745931033097,-470.0,0.00027509,2]
[359330671,1745931033107,-470.0,0.00027509,2]
[359330672,1745931033116,-470.0,0.00027509,2]
[359330673,1745931033126,-238.64240121,0.00027509,2]
[359330674,1745931033135,-470.0,0.00027509,2]
[359330675,1745931033145,-470.0,0.00027509,2]
[359330676,1745931033153,-470.0,0.00027509,2]
[359330677,1745931033162,-470.0,0.00027509,2]
[359330678,1745931033172,-470.0,0.00027509,2]
[359330679,1745931033181,-470.0,0.00027509,2]
[359330680,1745931033191,-528.99,0.00027509,2]
[359330681,1745931033200,-470.0,0.00027509,2]
[359330682,1745931033209,-470.0,0.00027509,2]
[359330683,1745931033219,-470.0,0.00027509,2]
[359330684,1745931033228,-470.0,0.00027509,2]
[359330685,1745931033237,-400.0,0.00027509,2]
[359330686,1745931033247,-566.01074092,0.00027509,2]
[359330687,1745931033257,-470.0,0.00027509,2]